bitfinex/quotes_ETHUSD_20251217
["timestamp","ask_amount","ask_price","bid_price","bid_amount"]
[1765988674636,7.2231,2857.5,2855.9,5.9589]
[1765988674835,5.4062,2857.5,2856.2,2.2191]
[1765988675036,1.8169,2858.0,2856.5,2.68348023]
[1765988675037,5.4062,2858.0,2856.5,2.68348023]
[1765988675263,0.631,2858.3,2857.0,5.9589]
[1765988675412,5.4411,2858.2,2856.4,6.42328023]
[1765988675617,0.631,2858.3,2856.0,0.002]
[1765988675618,9.36459887,2857.7,2856.0,0.002]
[1765988675815,9.36459887,2857.7,2854.9,3.50273637]
[1765988675816,0.60721,2858.1,2853.2,5.9589]
[1765988675817,1.8169,2856.2,2853.2,5.9589]
[1765988676160,1.8169,2855.5,2855.0,0.0008]
[1765988676450,15.2351791,2856.3,2854.9,0.002]
[1765988676451,0.81269,2855.4,2854.9,0.002]
[1765988676660,0.631,2855.4,2854.9,0.002]
[1765988676861,0.631,2855.4,2853.8,0.002]
[1765988676862,1.86067823,2855.3,2853.8,0.002]
[1765988677163,1.8169,2855.9,2853.9,8.178]
[1765988677375,1.8169,2855.0,2853.1,0.002]
[1765988677532,1.8169,2854.8,2853.1,0.002]
[1765988677896,1.8169,2854.6,2853.1,0.002]
[1765988678030,0.33939389,2854.7,2853.1,0.002]
[1765988678031,5.5124,2854.4,2853.1,0.002]
[1765988678338,5.5124,2854.1,2853.1,0.002]
[1765988678537,5.5124,2853.9,2853.1,0.002]
[1765988678737,0.04380124,2853.8,2853.1,0.002]
[1765988678942,0.04380124,2853.8,2852.0,0.002]
[1765988678943,1.8169,2853.7,2852.0,0.002]
[1765988679267,15.516259,2853.9,2852.2,2.1849]
[1765988679430,1.8169,2854.3,2852.5,2.1849]
[1765988679431,6.18720124,2853.8,2852.5,2.1849]
[1765988679626,6.43135,2853.6,2852.5,5.6905594]
[1765988679962,24.857425,2854.3,2852.9,2.1849]
[1765988680137,5.5124,2854.4,2853.1,0.03139006]
[1765988680138,7.759,2854.1,2853.1,0.03139006]
[1765988680346,0.46438023,2854.8,2853.2,2.1849]
[1765988680538,0.631,2854.6,2853.2,2.1849]
[1765988680882,0.631,2854.6,2853.1,5.92919006]
[1765988680883,5.7849,2854.5,2852.4,0.46438023]
[1765988681030,5.7849,2854.1,2852.7,0.03139006]
[1765988681230,1.4281,2854.0,2852.7,0.03139006]
[1765988681536,9.44289817,2854.0,2852.8,3.53666284]
[1765988681754,0.631,2853.9,2852.9,5.5184]
[1765988681956,0.631,2854.0,2852.9,5.5184]
[1765988682160,3.202008,2854.3,2852.9,3.50509814]
[1765988682462,0.6747951,2854.2,2852.7,0.03139006]
[1765988682761,0.631,2854.2,2852.9,5.66139006]
[1765988682957,1.4912,2854.2,2852.9,5.66139006]
[1765988683141,0.04379664,2854.1,2852.9,5.66139006]
[1765988683340,0.631,2854.0,2853.1,0.03139006]
[1765988683664,5.9629,2854.8,2853.1,8.3352]
[1765988683864,1.22729,2854.7,2853.2,2.3674]
[1765988684035,2.28148897,2854.6,2853.2,2.3674]
[1765988684229,8.2006,2854.6,2853.2,2.3674]
[1765988684459,21.333004,2855.5,2853.3,7.00936222]
[1765988684657,21.333004,2855.5,2853.1,0.002]
[1765988684658,8.2006,2855.0,2853.4,8.3352]
[1765988684861,0.18121645,2856.0,2854.1,5.9678]
[1765988685028,0.18121645,2856.0,2853.3,3.50469102]
[1765988685029,16.106213,2855.7,2853.6,2.3674]
[1765988685229,0.67476903,2855.9,2852.8,0.03139006]
[1765988685230,5.9629,2854.9,2852.8,0.03139006]
[1765988685552,4.927,2855.4,2852.8,0.03139006]
[1765988685553,2.2377,2854.4,2852.8,0.03139006]
[1765988685753,5.9629,2854.2,2852.7,3.50534039]
[1765988685937,0.65939,2854.1,2852.7,0.03139006]
[1765988686260,0.631,2854.2,2853.3,5.9678]
[1765988686466,0.631,2854.2,2853.3,11.83991384]
[1765988686644,5.9629,2855.0,2853.4,2.3674]
[1765988686965,0.631,2854.9,2853.6,8.3352]
[1765988687139,0.631,2854.9,2853.1,0.002]
[1765988687140,5.9629,2854.6,2853.1,0.002]
[1765988687339,0.631,2854.8,2853.1,0.002]
[1765988687340,5.9629,2854.3,2853.1,0.002]
[1765988687554,5.9629,2854.1,2853.1,0.002]
[1765988687863,8.2006,2854.1,2853.1,0.002]
[1765988688164,0.631,2854.2,2853.1,2.3694]
[1765988688165,0.6302,2854.2,2853.1,2.3694]
[1765988688462,0.6302,2854.2,2853.1,0.002]
[1765988688463,8.2006,2854.1,2853.1,0.002]
[1765988688761,8.2006,2854.1,2852.3,0.03139006]
[1765988688762,5.9629,2853.6,2852.2,25.123331]
[1765988688971,0.631,2853.5,2852.2,8.3352]
[1765988689163,0.631,2853.5,2852.3,16.427633]
[1765988689355,5.9629,2853.6,2852.2,11.84118753]
[1765988689666,0.631,2853.5,2852.2,8.3352]
[1765988690064,0.631,2853.5,2852.2,11.84126239]
[1765988690241,0.631,2853.5,2852.2,8.3352]
[1765988690635,7.9809,2853.4,2852.0,0.002]
[1765988690832,1.7667712,2853.9,2852.0,0.002]
[1765988690833,7.9809,2853.3,2852.0,0.002]
[1765988691134,0.631,2853.2,2852.0,5.564]
[1765988691358,2.1506,2852.7,2852.0,0.002]
[1765988691686,0.64313,2853.1,2852.0,0.002]
[1765988691864,0.631,2852.7,2852.0,0.002]
[1765988692067,5.87411967,2852.6,2851.9,0.002]
[1765988692242,7.9809,2852.6,2851.9,0.002]
[1765988692442,6.39569,2852.5,2851.2,9.06926943]
[1765988692750,0.64313,2853.1,2851.3,0.03139006]
[1765988692952,0.04381352,2853.0,2851.5,2.2632]
[1765988693154,0.67481352,2853.0,2851.6,7.9642]
[1765988693333,0.405504,2853.9,2851.5,0.631]
[1765988693334,0.03139006,2854.1,2852.0,7.9642]
[1765988693536,5.5345,2853.5,2852.0,7.9642]
[1765988693736,7.744,2853.3,2852.0,2.2632]
[1765988694156,5.5345,2853.9,2852.1,0.631]
[1765988694461,5.5345,2853.7,2851.6,0.01772415]
[1765988694658,5.5345,2853.3,2851.3,2.2632]
[1765988694863,0.46438023,2853.0,2851.3,2.2632]
[1765988695070,5.5345,2852.9,2851.3,2.2632]
[1765988695275,0.04381352,2853.0,2851.0,9.83950718]
[1765988695276,7.744,2852.5,2851.0,5.701]
[1765988695441,1.13920297,2852.4,2851.0,5.701]
[1765988695647,0.631,2852.3,2851.1,2.18]
[1765988695866,0.631,2852.5,2851.4,2.18]
[1765988696355,0.46438023,2852.9,2851.4,2.18]
[1765988696556,8.1358,2852.5,2850.9,2.813]
[1765988696773,8.1358,2852.5,2851.1,5.7979]
[1765988696972,0.631,2852.4,2851.2,7.9779]
[1765988697276,0.46438023,2852.9,2851.4,7.9779]
[1765988697440,0.0438166,2852.8,2851.4,7.9779]
[1765988697638,0.631,2852.7,2851.4,7.9779]
[1765988697868,0.04381967,2852.6,2851.3,0.631]
[1765988698070,5.9326,2853.2,2851.7,2.18]
[1765988698372,16.686721,2853.9,2852.1,2.18]
[1765988698578,16.686721,2853.9,2852.4,8.44228023]
[1765988698579,0.00080001,2853.2,2852.4,8.44228023]
[1765988698738,0.00080001,2853.2,2852.3,0.631]
[1765988698939,8.1358,2852.6,2851.2,0.46438023]
[1765988699265,0.001,2852.7,2852.0,5.7979]
[1765988699266,0.00080001,2852.5,2852.0,5.7979]
[1765988699685,5.9326,2853.3,2851.9,2.18]
[1765988699866,0.631,2853.6,2852.2,7.9779]
[1765988700203,5.9326,2853.3,2851.7,5.7979]
[1765988700340,5.9326,2852.6,2851.1,9.266465]
[1765988700541,5.9326,2852.6,2851.2,3.50729517]
[1765988700776,5.9326,2853.6,2851.5,5.7979]
[1765988700977,30.0,2853.5,2852.1,2.18]
[1765988701174,8.1358,2853.1,2851.6,0.631]
[1765988701343,7.63600539,2853.8,2851.6,8.6089]
[1765988701344,24.243622,2852.9,2851.6,8.6089]
[1765988701536,2.2032,2853.6,2851.8,2.18]
[1765988701741,2.2032,2853.3,2851.8,2.18]
[1765988702000,2.24701045,2853.2,2851.8,2.18]
[1765988702155,2.24701045,2853.2,2851.0,0.002]
[1765988702156,2.2032,2852.8,2851.0,0.002]
[1765988702501,0.44932213,2852.7,2851.0,0.002]
[1765988702643,0.405504,2852.0,2850.1,2.2583]
[1765988702840,7.8382,2851.8,2850.5,5.7357]
[1765988703056,5.6686,2851.3,2849.9,5.76716195]
[1765988703257,5.6686,2851.7,2849.9,3.50879464]
[1765988703478,5.6686,2851.7,2849.8,0.002]
[1765988703479,5.6686,2851.7,2850.1,0.63]
[1765988703693,2.1696,2851.9,2850.5,5.7357]
[1765988703859,27.942436,2852.1,2850.7,9.24355193]
[1765988704060,7.8382,2852.7,2850.9,5.7357]
[1765988704271,0.04381967,2852.6,2851.2,2.2583]
[1765988704472,0.04381967,2852.6,2850.1,7.63600539]
[1765988704473,2.1696,2852.3,2850.6,5.7357]
[1765988704670,0.78820197,2852.5,2850.4,0.63]
[1765988704671,2.1696,2851.7,2850.4,0.63]
[1765988704882,0.04382274,2852.4,2850.0,0.1357]
[1765988705190,0.63,2852.3,2850.2,2.2583]
[1765988705369,0.405504,2852.1,2850.3,0.63]
[1765988705574,7.8382,2851.9,2850.3,0.63]
[1765988705774,21.848197,2852.4,2850.7,5.7357]
[1765988705993,0.78820197,2852.5,2850.7,5.7357]
[1765988705994,21.848197,2852.2,2850.9,5.7357]
[1765988706283,0.46438023,2852.9,2850.9,5.7357]
[1765988706284,5.6686,2853.3,2851.4,0.9695]
[1765988706468,5.6686,2852.8,2851.5,0.46438023]
[1765988706668,5.6686,2852.8,2850.5,0.9695]
[1765988706669,2.1696,2852.6,2850.5,0.9695]
[1765988706871,0.0438212,2852.5,2850.5,0.9695]
[1765988707194,0.63,2852.7,2850.6,21.848197]
[1765988707195,0.03139006,2851.6,2850.6,21.848197]
[1765988707402,0.63,2851.5,2850.5,3.50808334]
[1765988707717,0.001,2852.7,2850.9,0.9695]
[1765988707991,2.113865,2852.5,2851.2,22.817697]
[1765988708163,0.63,2852.6,2851.3,21.848197]
[1765988708358,0.63,2852.6,2851.5,21.848197]
[1765988708559,5.6686,2852.5,2851.3,21.848197]
[1765988708771,0.04382274,2852.4,2851.5,21.848197]
[1765988708983,2.1696,2852.4,2851.1,21.848197]
[1765988709214,7.8382,2852.0,2850.7,21.848197]
[1765988709394,0.63,2852.6,2850.3,21.848197]
[1765988709395,0.03139006,2851.3,2850.3,21.848197]
[1765988709593,0.66139006,2851.9,2850.1,3.50855188]
[1765988709594,0.03139006,2852.3,2850.7,3.50788934]
[1765988709796,7.8382,2852.1,2851.0,21.848197]
[1765988709960,0.63,2852.2,2849.8,0.002]
[1765988709961,5.588,2851.9,2850.3,5.4271]
[1765988710161,0.07521126,2852.5,2850.5,5.9084]
[1765988710368,2.2887,2852.3,2850.8,5.9084]
[1765988710565,0.03139006,2852.5,2851.2,5.7079]
[1765988710766,0.63,2852.4,2851.6,5.7079]
[1765988711290,0.63,2852.4,2851.4,0.46438023]
[1765988711469,0.63,2852.4,2850.9,7.01532848]
[1765988711470,2.2418,2852.2,2849.8,5.7599]
[1765988711801,2.2418,2851.7,2850.5,11.741786]
[1765988711967,2.2418,2851.4,2849.9,8.0049]
[1765988712168,5.8878,2851.2,2849.9,5.7079]
[1765988712368,2.241,2851.1,2849.9,5.7079]
[1765988712800,5.8878,2851.2,2849.9,5.7079]
[1765988713168,0.04384272,2851.1,2848.8,0.01912]
[1765988713370,3.2737,2851.0,2849.2,0.03139006]
[1765988713596,3.2737,2850.6,2848.9,30.0]
[1765988713868,0.63,2850.9,2848.9,30.0]
[1765988713869,3.2737,2850.5,2848.9,30.0]
[1765988714288,0.63,2850.9,2848.8,0.01912]
[1765988714289,2.70618023,2850.2,2848.8,0.01912]
[1765988714490,1.7426,2850.0,2848.8,0.01912]
[1765988714676,8.9507,2849.8,2848.8,0.01912]
[1765988715102,8.9507,2849.8,2849.1,5.7079]
[1765988715403,15.309991,2850.0,2849.3,0.002]
[1765988715608,8.9507,2850.0,2849.3,0.002]
[1765988715794,1.77824012,2852.0,2849.3,0.002]
[1765988715795,8.9507,2850.9,2849.4,8.0049]
[1765988715981,19.332296,2850.7,2849.5,5.7079]
[1765988716182,2.9507,2850.7,2849.6,0.64781147]
[1765988716370,1.7426,2852.2,2850.0,2.297]
[1765988716569,4.523596,2851.5,2850.4,0.46438023]
[1765988716771,0.63,2851.4,2850.6,2.76138023]
[1765988716971,0.001,2852.6,2851.3,2.76138023]
[1765988717176,6.5616212,2852.5,2850.8,2.76138023]
[1765988717390,6.5178,2852.5,2850.8,2.76138023]
[1765988717710,6.5178,2852.5,2850.7,5.7079]
[1765988717711,5.8878,2852.0,2850.7,20.279766]
[1765988717874,5.8878,2851.7,2850.4,0.46438023]
[1765988718082,5.8878,2851.7,2850.3,0.46438023]
[1765988718481,0.04383503,2851.6,2850.0,0.46438023]
[1765988718681,5.8878,2852.2,2850.4,0.46438023]
[1765988718887,6.5178,2852.1,2850.6,8.0049]
[1765988719082,6.5178,2852.1,2850.3,3.97273752]
[1765988719083,6.5178,2852.1,2850.7,2.297]
[1765988719282,0.63,2852.1,2851.2,2.297]
[1765988719582,0.63,2852.4,2851.4,2.297]
[1765988719784,0.63,2852.4,2851.3,2.297]
[1765988720195,0.63,2852.4,2851.3,2.76138023]
[1765988720395,0.04382428,2852.3,2850.9,2.63848023]
[1765988720595,0.0438212,2852.5,2850.9,4.85382025]
[1765988720781,0.63,2852.4,2851.3,2.1741]
[1765988720982,0.63,2852.4,2851.4,5.8658]
[1765988721313,0.63,2852.4,2851.2,0.46438023]
[1765988721512,0.63,2852.4,2851.2,2.63848023]
[1765988721712,0.63,2852.4,2851.2,2.1741]
[1765988722012,0.63,2852.4,2851.0,5.8658]
[1765988722013,0.04382428,2852.3,2851.0,5.8658]
[1765988722198,6.05809243,2852.2,2850.8,0.46438023]
[1765988722401,7.1887,2852.0,2850.6,0.46438023]
[1765988722715,0.63,2851.9,2850.6,8.0399]
[1765988723086,0.63,2851.9,2850.6,5.8658]
[1765988723281,0.63,2851.9,2850.7,2.1741]
[1765988723503,0.63,2851.9,2850.7,8.0399]
[1765988723504,1.24199274,2851.9,2850.7,8.0399]
[1765988723705,5.4461,2851.8,2850.5,0.46438023]
[1765988724013,5.9749,2851.6,2850.5,0.002]
[1765988724720,0.04383657,2851.5,2850.5,2.2526]
[1765988724882,0.629,2851.4,2850.5,0.002]
[1765988725221,0.629,2851.3,2850.5,0.002]
[1765988725419,0.04384118,2851.2,2849.6,5.7699]
[1765988725635,2.3716,2851.3,2849.5,2.2506]
[1765988725636,0.629,2851.3,2850.1,3.5086462]
[1765988725829,0.405504,2852.4,2850.6,2.2506]
[1765988725995,1.7426,2851.8,2850.2,0.46438023]
[1765988726195,5.9749,2852.4,2850.3,5.7699]
[1765988726389,0.629,2852.3,2850.3,0.01777581]
[1765988726734,0.629,2852.3,2850.6,0.46438023]
[1765988726735,6.64772428,2852.3,2850.6,0.46438023]
[1765988726893,6.6039,2852.3,2850.9,8.0205]
[1765988727094,6.6039,2852.3,2850.6,1.79082047]
[1765988727295,6.6039,2852.3,2850.5,5.7699]
[1765988727296,0.629,2852.3,2851.4,2.2506]
[1765988727532,0.001,2852.6,2851.8,5.7699]
[1765988727730,0.001,2852.6,2851.1,0.46438023]
[1765988728048,0.001,2852.6,2851.6,0.46438023]
[1765988728338,0.001,2852.7,2852.1,2.1597]
[1765988728542,0.001,2852.7,2852.1,7.7241]
[1765988728710,0.001,2852.7,2852.1,11.23026028]
[1765988729059,0.629,2853.1,2852.2,7.7494]
[1765988729337,0.629,2853.1,2852.3,2.1674]
[1765988730231,0.629,2853.1,2851.5,2.3519]
[1765988730419,5.7189,2853.0,2851.8,5.85838991]
[1765988730624,0.629,2852.9,2852.0,11.74220641]
[1765988730846,0.001,2853.8,2852.4,8.2359]
[1765988731032,5.76370124,2853.8,2852.4,8.2359]
[1765988731234,6.3479,2853.7,2852.4,5.884]
[1765988731440,0.04480124,2853.8,2852.4,5.884]
[1765988731441,0.001,2853.8,2852.8,5.884]
[1765988731610,0.001,2853.9,2853.3,2.3519]
[1765988731815,0.001,2855.0,2853.8,5.7747]
[1765988732042,0.001,2855.0,2854.0,5.7747]
[1765988732343,0.001,2855.0,2853.3,0.82359]
[1765988732344,0.001,2854.3,2853.7,2.2447]
[1765988732646,0.001,2854.3,2852.3,3.50584189]
[1765988732855,0.001,2854.3,2852.1,3.50609061]
[1765988732856,5.8206,2853.9,2852.1,5.7747]
[1765988733156,5.8206,2853.5,2852.2,5.75075832]
[1765988733343,5.8206,2853.5,2852.2,8.0194]
[1765988733509,1.21106,2853.8,2852.6,7.01111917]
[1765988733715,0.629,2853.7,2852.7,2.2447]
[1765988733923,0.04380431,2853.6,2852.4,2.70908023]
[1765988734134,0.629,2853.7,2852.5,2.70908023]
[1765988734447,0.001,2854.3,2853.3,2.2447]
[1765988734648,0.001,2854.3,2853.6,2.2447]
[1765988734847,0.629,2854.6,2853.6,8.0194]
[1765988735048,0.629,2854.6,2853.7,2.2447]
[1765988735251,0.629,2854.6,2853.8,8.0194]
[1765988735470,0.001,2854.9,2853.8,0.80194]
[1765988735627,0.001,2854.9,2854.1,5.7747]
[1765988735831,0.001,2854.9,2854.3,5.7747]
[1765988736021,0.001,2855.4,2854.6,2.2447]
[1765988736219,0.03139006,2856.9,2854.8,2.70908023]
[1765988736220,0.0002,2856.6,2854.8,2.70908023]
[1765988736547,0.0002,2856.6,2855.2,0.46438023]
[1765988736752,0.0002,2856.6,2855.7,5.7747]
[1765988736913,0.0002,2856.6,2855.9,2.2447]
[1765988737117,0.0002,2856.6,2856.5,2.2447]
[1765988737347,0.0002,2856.6,2855.4,0.46438023]
[1765988737522,0.0002,2856.6,2854.5,7.63536224]
[1765988737523,5.8206,2856.5,2854.5,0.628]
[1765988737725,0.0002,2856.6,2854.6,2.2447]
[1765988737726,5.8206,2856.1,2854.6,2.2447]
[1765988737942,7.03066,2856.0,2854.6,2.2447]
[1765988738144,5.8206,2855.5,2853.9,2.2447]
[1765988738348,0.628,2855.4,2854.0,0.01767133]
[1765988738552,0.628,2855.4,2854.3,2.2447]
[1765988738723,0.628,2855.4,2854.3,8.0194]
[1765988739059,0.628,2855.4,2852.9,1.80713227]
[1765988739060,5.8206,2855.3,2853.8,5.7747]
[1765988739254,5.8206,2854.8,2853.1,5.7747]
[1765988739414,5.85199006,2854.6,2853.1,5.7747]
[1765988739616,5.85199006,2854.6,2852.6,5.7747]
[1765988739617,5.8206,2854.4,2852.6,5.7747]
[1765988739844,5.8206,2854.4,2851.3,3.5070961]
[1765988739845,5.8206,2853.8,2852.0,8.6474]
[1765988740032,5.8206,2853.6,2852.1,0.86474]
[1765988740657,5.8206,2853.6,2852.1,3.49322023]
[1765988740885,0.46438023,2852.6,2850.0,2.1641]
[1765988741017,0.46438023,2852.6,2849.5,0.002]
[1765988741018,1.7426,2851.5,2849.5,0.002]
[1765988741324,1.0773252,2852.5,2849.7,2.1641]
[1765988741325,6.1585,2851.4,2849.7,2.1641]
[1765988741525,5.5305,2851.4,2849.7,2.1641]
[1765988741726,5.5305,2851.4,2850.0,2.1641]
[1765988741928,1.75341087,2853.4,2850.5,0.03139006]
[1765988742127,5.5305,2852.5,2850.6,2.1641]
[1765988742325,6.88581,2852.4,2850.6,2.38364901]
[1765988742545,6.25781,2852.4,2850.7,2.1641]
[1765988742726,0.628,2852.3,2850.8,5.7537]
[1765988742926,6.25781,2852.4,2850.9,2.1641]
[1765988743156,0.628,2852.3,2851.3,0.03139006]
[1765988743325,1.316581,2852.3,2851.3,0.03139006]
[1765988743741,0.628,2852.2,2851.1,0.03139006]
[1765988744253,5.5305,2853.6,2851.6,0.03139006]
[1765988744421,5.5305,2853.3,2851.8,0.03139006]
[1765988744619,0.628,2853.2,2852.0,2.1641]
[1765988744818,1.263,2855.1,2852.0,2.1641]
[1765988744819,0.628,2853.1,2852.0,2.62848023]
[1765988745367,1.7426,2854.1,2852.2,2.1641]
[1765988745567,6.1585,2854.0,2852.4,7.9178]
[1765988745855,5.5305,2854.0,2852.4,7.9178]
[1765988746158,0.72731,2853.9,2852.8,0.03139006]
[1765988746373,0.628,2853.8,2852.8,0.03139006]
[1765988746520,0.628,2853.8,2851.9,0.03139006]
[1765988746521,5.5305,2853.5,2851.9,0.03139006]
[1765988746720,5.5305,2853.5,2851.9,9.29151506]
[1765988746921,5.5305,2853.5,2852.1,2.1641]
[1765988747166,5.7915,2854.1,2852.7,0.03139006]
[1765988747363,0.628,2854.0,2852.7,2.39589006]
[1765988747655,0.628,2854.0,2852.9,0.03139006]
[1765988748023,0.628,2854.0,2853.0,0.03139006]
[1765988748222,11.16901851,2855.3,2853.1,0.03139006]
[1765988748223,7.63536224,2855.3,2853.1,0.03139006]
[1765988748424,5.7915,2854.9,2852.9,2.3645]
[1765988748657,5.7915,2854.5,2852.9,2.3645]
[1765988748857,0.628,2854.4,2852.9,2.3645]
[1765988749027,0.67179204,2854.4,2852.9,2.3645]
[1765988749459,0.67179204,2854.4,2853.1,2.39589006]
[1765988749460,0.628,2854.3,2853.1,2.39589006]
[1765988749661,5.7915,2854.5,2853.1,2.39589006]
[1765988749828,1.38041,2854.4,2853.1,2.39589006]
[1765988750693,0.76353622,2855.2,2853.3,0.03139006]
[1765988750694,1.7426,2855.1,2853.3,0.03139006]
[1765988750982,5.7915,2854.9,2853.5,0.03139006]
[1765988751269,0.03139006,2856.2,2853.5,0.03139006]
[1765988751270,3.50087773,2856.6,2853.5,0.03139006]
[1765988751471,5.7915,2856.1,2854.0,5.616]
[1765988751635,0.627,2856.0,2854.4,5.616]
[1765988751935,0.627,2855.9,2854.8,2.3645]
[1765988752139,0.627,2855.9,2855.0,7.9805]
[1765988752335,0.04377057,2855.8,2853.3,7.00942039]
[1765988752674,5.8745,2855.4,2853.7,8.92398998]
[1765988752872,5.8745,2855.4,2853.8,2.6005]
[1765988753032,2.2194,2855.2,2853.3,6.10519621]
[1765988753232,5.9182813,2855.1,2853.3,2.6005]
[1765988753433,2.2194,2855.0,2853.3,8.0203]
[1765988753640,5.6007,2854.8,2853.3,8.92449641]
[1765988753873,5.6007,2855.4,2853.7,7.00841559]
[1765988754183,6.78777,2855.3,2854.0,7.87]
[1765988754331,3.55145599,2856.0,2853.7,3.50419301]
[1765988754332,5.6007,2855.9,2853.8,0.03139006]
[1765988754533,5.6007,2855.9,2854.5,2.2593]
[1765988754882,0.627,2855.8,2854.8,2.2593]
[1765988755637,0.627,2855.8,2854.3,9.74111555]
[1765988755843,0.627,2855.8,2854.4,11.37335823]
[1765988756086,0.627,2855.8,2854.4,7.87]
[1765988756295,5.6007,2855.7,2853.9,7.87]
[1765988756442,1.7426,2855.4,2853.9,2.2593]
[1765988756645,6.27147823,2855.3,2853.9,2.2593]
[1765988757046,6.27147823,2855.3,2853.7,0.002]
[1765988757047,5.6007,2855.1,2853.7,0.002]
[1765988757342,0.04378283,2855.0,2853.7,2.2613]
[1765988758042,5.6007,2855.1,2853.7,2.2613]
[1765988758279,6.33503,2855.0,2853.7,2.2613]
[1765988758902,0.73433,2855.0,2853.8,5.6107]
[1765988759183,5.6007,2855.5,2854.0,2.2593]
[1765988759393,0.03139006,2856.3,2853.7,0.002]
[1765988759394,1.7426,2855.3,2853.7,0.002]
[1765988759642,0.46438023,2855.1,2853.7,0.002]
[1765988759936,5.6007,2854.6,2853.7,0.002]
[1765988760142,0.627,2854.5,2853.7,0.002]
[1765988760348,0.627,2854.5,2852.6,0.002]
[1765988760349,5.6007,2854.0,2852.6,0.002]
[1765988760508,1.7406,2853.7,2852.6,0.002]
[1765988760838,1.7406,2853.7,2851.8,7.872]
[1765988760839,5.6007,2853.2,2851.8,0.002]
[1765988761035,7.3413,2852.9,2851.8,0.002]
[1765988761234,5.6007,2852.8,2851.8,0.002]
[1765988761441,5.6007,2852.8,2850.9,3.50761414]
[1765988761442,5.6007,2852.6,2850.6,8.09154901]
[1765988761605,5.6007,2852.2,2850.6,7.872]
[1765988761809,6.2267,2852.1,2850.6,7.872]
[1765988762114,5.6007,2851.5,2850.6,0.002]
[1765988762327,5.6007,2851.2,2849.8,5.6107]
[1765988762515,1.36013,2851.4,2849.5,2.2613]
[1765988762516,5.6007,2850.9,2849.5,2.2613]
[1765988762727,1.7386,2851.0,2849.6,2.2593]
[1765988762728,5.6007,2851.0,2849.6,2.2593]
[1765988762927,0.626,2850.8,2849.9,5.6107]
[1765988763135,0.73413,2851.4,2850.1,5.6107]
[1765988763341,1.7386,2852.1,2849.5,10.530132]
[1765988763342,0.626,2851.3,2850.3,5.6107]
[1765988763547,0.626,2851.3,2850.0,5.6107]
[1765988763730,5.6007,2852.4,2850.2,5.6107]
[1765988763916,9.14735234,2853.5,2850.8,5.6107]
[1765988764117,5.6007,2853.0,2851.5,2.2593]
[1765988764318,5.6007,2852.8,2851.1,5.6107]
[1765988764513,1.7667712,2853.9,2851.1,5.6107]
[1765988764514,5.6007,2853.3,2851.6,2.2593]
[1765988764753,3.50295082,2854.8,2851.6,2.2593]
[1765988764754,1.7386,2854.5,2852.3,5.6107]
[1765988765053,1.74418754,2855.3,2852.3,5.6107]
[1765988765054,0.626,2854.3,2853.0,5.6107]
[1765988765251,0.626,2854.3,2853.1,2.2593]
[1765988765417,0.626,2854.2,2853.1,2.2593]
[1765988765819,5.6007,2855.0,2853.4,5.6107]
[1765988766058,0.626,2855.0,2853.9,2.2593]
[1765988766222,0.626,2855.4,2854.2,7.87]
[1765988766425,0.626,2855.4,2854.3,2.2593]
[1765988766962,0.0002,2856.6,2855.2,2.2593]
[1765988767118,0.0002,2856.6,2854.4,10.93325884]
[1765988767119,5.6007,2856.2,2854.5,2.2593]
[1765988767460,0.03139006,2856.4,2853.6,3.50428964]
[1765988767461,1.7386,2855.9,2854.1,3.50370653]
[1765988767755,5.64447057,2855.8,2854.1,2.2593]
[1765988767937,1.7386,2855.7,2853.6,2.2593]
[1765988768121,2.40837363,2855.6,2853.7,3.50419162]
[1765988768454,0.86683736,2855.5,2853.8,2.2593]
[1765988768828,0.24083736,2855.5,2853.8,3.50407729]
[1765988769030,1.7386,2855.3,2853.4,5.6107]
[1765988769556,1.7386,2855.1,2853.4,2.1856]
[1765988769750,0.04378283,2855.0,2853.5,2.1856]
[1765988769951,5.7266,2854.9,2851.7,1.76357994]
[1765988770121,9.14735234,2855.2,2853.4,2.1856]
[1765988770122,0.63526,2854.8,2853.4,2.1856]
[1765988770322,0.24083736,2855.5,2854.0,5.8132]
[1765988770556,0.03239006,2856.4,2854.6,5.9734]
[1765988770751,0.001,2856.4,2855.0,7.00525394]
[1765988770954,0.001,2856.4,2855.6,5.9734]
[1765988771121,0.001,2856.4,2855.7,8.2955]
[1765988771322,0.001,2857.1,2855.8,8.2955]
[1765988771526,5.9012,2857.3,2855.8,8.2955]
[1765988771527,4.9024,2857.3,2855.9,8.2955]
[1765988771758,1.7386,2857.0,2854.6,0.626]
[1765988772067,1.7386,2856.8,2854.9,2.3221]
[1765988772222,0.04375371,2856.9,2854.2,3.90903265]
[1765988772223,0.04375678,2856.7,2854.2,2.78648023]
[1765988772420,2.43974837,2856.6,2854.6,8.2955]
[1765988772623,1.7386,2856.5,2854.7,2.3221]
[1765988772852,1.7386,2856.3,2854.8,2.3221]
[1765988773162,0.03139006,2856.6,2854.8,5.9734]
[1765988773343,2.3646,2856.5,2854.8,2.3221]
[1765988773551,6.65331644,2856.4,2854.8,3.5019589]
[1765988773744,0.626,2856.3,2854.9,2.3221]
[1765988774057,0.625,2856.2,2855.0,5.9734]
[1765988774224,0.04376291,2856.3,2855.0,5.9734]
[1765988774423,0.625,2856.2,2855.1,2.3221]
[1765988774624,0.625,2856.1,2855.2,2.55431]
[1765988774830,0.07513918,2857.2,2855.2,2.55431]